bitfinex-derivatives/quotes_SOLF0:USTF0_20250929
["timestamp","ask_amount","ask_price","bid_price","bid_amount"]
[1759169294230,7.46,210.11,210.03,2.23384435]
[1759169295632,4.2812,210.09,210.03,2.23384435]
[1759169296031,105.1012,210.09,210.02,12.2124]
[1759169296232,7.46,210.08,210.02,12.2124]
[1759169296732,7.46,210.08,210.0,6.51664435]
[1759169297527,7.46,210.05,209.98,10.16384435]
[1759169297736,7.46,210.05,209.98,7.93]
[1759169298435,2.23384435,210.04,209.98,7.93]
[1759169299733,4.2826,210.02,209.95,14.44764435]
[1759169300542,4.2828,210.01,209.95,10.16384435]
[1759169300734,9.69384435,210.02,209.95,7.93]
[1759169301038,126.65384435,210.02,209.95,7.93]
[1759169301439,7.46,209.99,209.95,7.93]
[1759169301628,9.69384435,210.0,209.92,7.93]
[1759169301832,9.69384435,209.98,209.92,7.93]
[1759169302540,4.2836,209.97,209.92,7.93]
[1759169302742,7.46,209.96,209.92,7.93]
[1759169303039,7.46,209.96,209.9,7.93]
[1759169304039,11.7438,209.96,209.9,7.93]
[1759169304641,7.46,209.96,209.9,7.93]
[1759169305236,7.46,209.96,209.9,12.2147]
[1759169305438,119.15384435,209.98,209.9,7.93]
[1759169305641,3.28819479,209.97,209.9,7.93]
[1759169305840,119.15384435,209.98,209.9,7.93]
[1759169306040,3.28819596,209.97,209.93,7.86]
[1759169306244,119.15384435,209.98,209.92,12.1443]
[1759169306538,3.28787565,209.97,209.92,4.2843]
[1759169306736,3.28787565,209.97,209.93,7.86]
[1759169307144,3.28787565,209.97,209.92,4.2843]
[1759169307449,3.28787565,209.97,209.93,7.86]
[1759169307748,3.28787565,209.97,209.92,4.2843]
[1759169307935,10.80787565,209.97,209.93,7.86]
[1759169308133,7.52,209.97,209.93,7.86]
[1759169308341,3.28751251,209.96,209.93,7.86]
[1759169308544,11.8036,209.97,209.93,7.86]
[1759169308844,3.28744811,209.96,209.9,14.37874435]
[1759169309045,4.2836,209.97,209.9,14.37874435]
[1759169309238,3.28752941,209.96,209.9,14.37874435]
[1759169309939,3.28752941,209.95,209.9,12.1449]
[1759169310246,7.52,209.94,209.9,7.86]
[1759169310842,25.86,209.97,209.89,12.145]
[1759169311046,3.28669188,209.96,209.89,14.37884435]
[1759169311249,103.6038,209.96,209.89,10.09384435]
[1759169311545,99.32,209.96,209.89,10.09384435]
[1759169311741,106.84,209.96,209.89,10.09384435]
[1759169312643,4.2841,209.95,209.89,10.09384435]
[1759169313048,4.2841,209.95,209.89,7.86]
[1759169313448,7.56963439,209.95,209.89,7.86]
[1759169314348,4.2841,209.95,209.89,7.86]
[1759169314549,7.52,209.94,209.85,14.23206514]
[1759169314848,99.32,209.96,209.9,2.23384435]
[1759169315549,99.32,209.96,209.9,6.51854435]
[1759169316146,11.8035,209.97,209.9,4.2847]
[1759169316347,120.06463963,209.96,209.9,6.51854435]
[1759169316546,116.78,209.96,209.9,6.51854435]
[1759169316953,116.76,209.96,209.9,6.51854435]
[1759169318052,7.52,209.97,209.9,2.23384435]
[1759169318254,97.74388947,209.96,209.9,2.23384435]
[1759169318553,7.52,209.97,209.9,2.23384435]
[1759169318754,97.68380602,209.96,209.89,7.86]
[1759169318954,94.4,209.96,209.89,10.09384435]
[1759169319449,7.52,209.95,209.88,4.2853]
[1759169319650,11.804,209.95,209.88,4.2853]
[1759169319845,11.804,209.95,209.61,18.67287193]
[1759169319846,7.52,209.92,209.82,7.86]
[1759169320045,3.28531786,209.91,209.84,7.86]
[1759169320247,3.28531786,209.9,209.84,7.86]
[1759169320456,4.285,209.9,209.84,7.86]
[1759169320652,7.52,209.89,209.82,4.2864]
[1759169320852,7.52,209.89,209.83,2.23384435]
[1759169320853,3.28377203,209.88,209.83,2.23384435]
[1759169321259,7.52,209.89,209.83,10.09384435]
[1759169321663,65.98,209.9,209.84,7.86]
[1759169321858,7.52,209.93,209.87,2.23384435]
[1759169322060,3.28180056,209.92,209.91,7.86]
[1759169322260,3.28095378,209.96,209.89,2.23384435]
[1759169322457,3.28095378,209.96,209.9,7.86]
[1759169323068,10.80095378,209.96,209.91,12.1446]
[1759169323268,3.28095378,209.95,209.91,12.1446]
[1759169323769,3.28095378,209.95,209.91,4.2846]
[1759169323963,3.28095378,209.96,209.93,7.86]
[1759169324163,3.28095378,209.98,209.92,12.1443]
[1759169325369,7.52,209.97,209.89,2.23384435]
[1759169325570,3.28095378,209.96,209.89,2.23384435]
[1759169326573,7.56465378,209.96,209.9,4.2848]
[1759169326769,7.56465378,209.96,209.9,12.1448]
[1759169327073,5.51479813,209.96,209.87,2.23384435]
[1759169327274,4.2842,209.94,209.88,12.1451]
[1759169328175,4.2845,209.92,209.88,7.86]
[1759169328376,7.52,209.91,209.84,21.9232556]
[1759169328672,7.52,209.91,209.84,7.86]
[1759169329576,4.2851,209.9,209.84,7.86]
[1759169330375,4.2853,209.88,209.84,7.86]
[1759169330577,7.52,209.89,209.8,24.23598748]
[1759169330874,4.2856,209.87,209.8,14.38064435]
[1759169331076,9.75384435,209.89,209.8,10.09384435]
[1759169331377,9.75384435,209.89,209.81,7.86]
[1759169332573,14.03904435,209.89,209.81,12.1466]
[1759169333181,4.2854,209.88,209.81,12.1466]
[1759169333575,9.75384435,209.89,209.81,7.86]
[1759169333778,7.52,209.88,209.81,7.86]
[1759169333983,9.75384435,209.88,209.81,7.86]
[1759169334577,4.2858,209.86,209.81,7.86]
[1759169334776,4.2858,209.86,209.79,4.2871]
[1759169334777,7.83,209.85,209.79,4.2871]
[1759169335980,7.83,209.85,209.78,2.23384435]
[1759169336178,7.83,209.85,209.77,26.3560955]
[1759169336881,12.1161,209.85,209.77,14.08134435]
[1759169337082,12.1161,209.85,209.79,4.2871]
[1759169337379,7.83,209.85,209.79,4.2871]
[1759169337680,7.83,209.85,209.77,11.8475]
[1759169337880,7.83,209.85,209.77,14.08134435]
[1759169338478,7.83,209.85,209.77,7.56]
[1759169338879,2.23384435,209.84,209.77,7.56]
[1759169339280,7.83,209.83,209.77,7.56]
[1759169340681,12.1164,209.83,209.77,7.56]
[1759169341485,7.83,209.83,209.77,7.56]
[1759169341678,7.83,209.83,209.74,2.23384435]
[1759169342078,4.2869,209.81,209.74,2.23384435]
[1759169342379,7.83,209.83,209.75,7.56]
[1759169342877,12.1164,209.83,209.76,4.2876]
[1759169344185,4.2867,209.82,209.75,9.79384435]
[1759169344388,7.83,209.83,209.75,9.79384435]
[1759169344584,2.23384435,209.82,209.73,2.23384435]
[1759169344886,2.23384435,209.82,209.72,11.8485]
[1759169344887,4.2873,209.79,209.72,11.8485]
[1759169345386,2.23384435,209.78,209.68,9.79384435]
[1759169345588,2.23384435,209.76,209.68,7.56]
[1759169345885,7.83,209.75,209.68,7.56]
[1759169346082,2.23384435,209.74,209.68,7.56]
[1759169346286,7.83,209.75,209.68,7.56]
[1759169346682,124.85,209.75,209.68,7.56]
[1759169347281,4.2883,209.74,209.68,7.56]
[1759169347590,4.2883,209.74,209.65,11.8499]
[1759169347985,4.2883,209.74,209.66,4.2896]
[1759169348790,4.2885,209.73,209.66,4.2896]
[1759169349187,4.2893,209.69,209.63,7.56]
[1759169349386,7.83,209.7,209.63,7.56]
[1759169349592,117.08,209.71,209.63,7.56]
[1759169349992,117.08,209.71,209.63,11.8503]
[1759169350791,12.1182,209.74,209.65,4.2899]
[1759169350987,117.14,209.73,209.66,7.56]
[1759169351189,7.83,209.72,209.61,13.96553839]
[1759169351394,7.83,209.72,209.62,7.56]
[1759169353089,69.89813852,209.71,209.62,7.56]
[1759169353297,74.5482,209.7,209.62,7.56]
[1759169353691,7.83,209.69,209.58,26.10422736]
[1759169353995,7.83,209.69,209.58,11.8514]
[1759169354204,66.7182,209.7,209.58,11.8514]
[1759169354390,12.19,209.66,209.58,11.8514]
[1759169354592,129.33,209.66,209.58,11.8514]
[1759169354786,125.04,209.66,209.58,11.8514]
[1759169354995,7.9,209.66,209.6,7.98]
[1759169358394,12.1899,209.66,209.6,7.98]
[1759169358597,129.2899,209.66,209.6,7.98]
[1759169358905,125.0,209.66,209.57,4.2916]
[1759169359601,4.2902,209.65,209.57,4.2916]
[1759169360905,117.06,209.64,209.58,7.98]
[1759169361800,121.3503,209.64,209.58,7.98]
[1759169363007,117.06,209.64,209.58,12.2713]
[1759169364101,7.9,209.63,209.54,7.98]
[1759169365106,4.2907,209.62,209.54,12.2721]
[1759169365505,7.9,209.63,209.54,12.2721]
[1759169366112,117.04,209.62,209.55,4.2919]
[1759169367012,8.01,209.63,209.56,4.2917]
[1759169367214,40.4,209.62,209.56,12.2017]
[1759169367412,8.01,209.61,209.5,7.91]
[1759169367612,12.3016,209.57,209.5,12.2029]
[1759169367808,117.1,209.58,209.5,7.91]
[1759169369009,117.1,209.58,209.52,4.2926]
[1759169369608,8.01,209.57,209.48,14.28968569]
[1759169369805,8.01,209.57,209.47,3.18253852]
[1759169369806,8.01,209.57,209.47,7.91]
[1759169371707,4.2926,209.53,209.47,7.91]
[1759169371908,8.01,209.54,209.47,7.91]
[1759169372318,8.01,209.54,209.43,7.91]
[1759169373411,4.2932,209.5,209.43,7.91]
[1759169373611,129.4232,209.5,209.43,7.91]
[1759169373811,125.13,209.5,209.43,7.91]
[1759169374112,125.13,209.5,209.4,3.18253852]
[1759169374113,125.13,209.5,209.4,17.51919753]
[1759169374317,8.01,209.46,209.39,7.91]
[1759169375015,117.2,209.45,209.39,7.91]
[1759169375718,121.4942,209.45,209.39,7.91]
[1759169375919,117.2,209.45,209.39,7.91]
[1759169376416,117.28,209.45,209.39,7.91]
[1759169376618,8.01,209.44,209.35,7.91]
[1759169377420,4.2945,209.43,209.35,7.91]
[1759169377615,117.26,209.42,209.35,7.91]
[1759169378214,117.26,209.42,209.28,387.3501]
[1759169378215,8.01,209.41,209.32,12.2067]
[1759169378616,125.25,209.41,209.32,12.2067]
[1759169379013,12.3051,209.41,209.32,7.91]
[1759169379418,80.04,209.4,209.32,7.91]
[1759169379612,4.2953,209.39,209.32,7.91]
[1759169380418,8.01,209.38,209.32,7.91]
[1759169380618,12.3057,209.38,209.32,7.91]
[1759169382322,117.3,209.4,209.32,7.91]
[1759169382719,117.28,209.4,209.33,4.2963]
[1759169385125,117.26,209.41,209.35,7.91]
[1759169385326,8.01,209.49,209.36,7.91]
[1759169385628,27.56,209.48,209.42,7.91]
[1759169386928,117.56,209.48,209.39,4.2953]
[1759169387223,117.54,209.48,209.39,4.2953]
[1759169387622,121.8336,209.48,209.39,4.2953]
[1759169387818,117.54,209.48,209.38,7.91]
[1759169388523,117.54,209.48,209.41,4.2947]
[1759169388731,129.8034,209.49,209.41,4.2947]
[1759169389424,129.8034,209.49,209.41,12.2047]
[1759169390225,4.2936,209.48,209.41,7.91]
[1759169392524,8.01,209.47,209.4,4.2949]
[1759169394523,8.01,209.47,209.42,7.38]
[1759169394725,7.94,209.52,209.4,3.18253852]
[1759169394931,3.2605818,209.51,209.41,7.38]
[1759169396733,7.94,209.52,209.44,7.38]
[1759169397326,2.53361508,209.53,209.47,4.2935]
[1759169397530,3.26376211,209.56,209.48,7.38]
[1759169397831,320.52,209.6,209.5,7.38]
[1759169398534,328.46,209.6,209.5,7.38]
[1759169398737,328.46,209.6,209.52,4.2924]
[1759169399234,328.46,209.6,209.53,4.2922]
[1759169401034,332.7511,209.6,209.5,22.03175369]
[1759169401433,328.46,209.6,209.5,7.38]
[1759169401625,7.94,209.58,209.46,3.18253852]
[1759169401830,7.94,209.58,209.47,7.38]
[1759169402634,4.2918,209.57,209.49,4.2932]
[1759169402833,320.52,209.6,209.47,7.38]
[1759169402834,7.94,209.59,209.47,7.38]
[1759169403035,320.52,209.6,209.43,3.18253852]
[1759169403036,7.94,209.55,209.43,3.18253852]
[1759169403333,7.94,209.5,209.43,4.2944]
[1759169403833,7.94,209.5,209.44,4.2941]
[1759169404137,7.94,209.5,209.42,21.96435029]
[1759169404138,50.78,209.51,209.43,7.38]
[1759169404433,7.94,209.48,209.4,4.2949]
[1759169404632,7.94,209.48,209.39,7.38]
[1759169406637,7.94,209.48,209.41,4.2948]
[1759169408240,7.94,209.48,209.41,6.33634068]
[1759169408639,7.94,209.48,209.42,4.2945]
[1759169411545,2.04154068,209.54,209.45,2.04154068]
[1759169411739,2.04154068,209.54,209.39,66.8158]
[1759169411740,11.22582175,209.53,209.47,2.04154068]
[1759169411945,11.22582175,209.52,209.47,9.42154068]
[1759169412146,11.22582175,209.51,209.47,9.42154068]
[1759169412437,7.94,209.51,209.47,9.42154068]
[1759169412642,7.94,209.51,209.47,13.71504068]
[1759169413248,7.94,209.51,209.47,9.42154068]
[1759169414448,7.94,209.51,209.47,13.71504068]
[1759169414943,7.94,209.51,209.47,11.6735]
[1759169416650,7.71,209.56,209.48,2.04154068]
[1759169416950,3.2887686,209.55,209.52,2.04154068]
[1759169417548,7.71,209.59,209.48,7.79]
[1759169417749,7.71,209.57,209.51,2.04154068]
[1759169418052,320.52,209.6,209.51,2.04154068]
[1759169418053,7.71,209.55,209.51,2.04154068]
[1759169418846,7.71,209.55,209.51,6.33424068]
[1759169419048,328.23,209.6,209.51,9.83154068]
[1759169419249,3.28374478,209.59,209.51,9.83154068]
[1759169419442,7.71,209.57,209.51,9.83154068]
[1759169419643,7.71,209.55,209.51,14.12424068]
[1759169420247,7.71,209.59,209.53,9.83154068]
[1759169420448,7.71,209.59,209.49,66.7841]
[1759169420449,7.71,209.59,209.55,2.04154068]
[1759169420647,7.71,209.59,209.55,9.83154068]
[1759169420843,7.71,209.59,209.55,14.12344068]
[1759169421050,7.71,209.63,209.57,2.04154068]
[1759169421245,10.9922512,209.62,209.57,9.83154068]
[1759169421445,3.2822512,209.61,209.58,12.0812]
[1759169421650,7.71,209.66,209.59,2.04154068]
[1759169421955,3.28103616,209.65,209.61,9.83154068]
[1759169422151,3.28103616,209.65,209.61,2.04154068]
[1759169422454,125.23,209.7,209.63,9.83154068]
[1759169422754,2.04154068,209.73,209.65,2.04154068]
[1759169422755,10.98863534,209.69,209.65,2.04154068]
[1759169422955,7.71,209.69,209.65,2.04154068]
[1759169423150,7.71,209.71,209.62,2.04154068]
[1759169423455,3.27593516,209.7,209.62,2.04154068]
[1759169424348,3.27593516,209.7,209.55,95.8849]
[1759169424349,7.38,209.69,209.6,2.04154068]
[1759169424553,7.38,209.63,209.54,7.79]
[1759169424753,2.04154068,209.64,209.51,2.04154068]
[1759169424754,7.38,209.61,209.51,2.04154068]
[1759169424956,7.38,209.58,209.51,2.04154068]
[1759169429160,7.38,209.58,209.5,7.79]
[1759169429359,7.38,209.58,209.54,2.04154068]
[1759169429652,4.2908,209.61,209.56,2.04154068]
[1759169429854,7.38,209.6,209.56,2.04154068]
[1759169430158,4.2908,209.61,209.56,2.04154068]
[1759169430361,7.38,209.6,209.56,2.04154068]
[1759169430659,117.52,209.62,209.56,2.04154068]
[1759169430859,3.28296729,209.61,209.56,2.04154068]
[1759169431160,3.28296729,209.61,209.53,7.79]
[1759169431354,7.38,209.6,209.55,2.04154068]
[1759169431658,7.38,209.61,209.55,2.04154068]
[1759169431859,3.2829447,209.6,209.55,2.04154068]
[1759169432048,7.38,209.59,209.55,2.04154068]
[1759169432246,7.38,209.61,209.55,2.04154068]
[1759169432455,3.28305919,209.6,209.55,2.04154068]
[1759169432652,7.38,209.6,209.55,2.04154068]
[1759169433160,4.291,209.61,209.55,2.04154068]
[1759169433356,7.38,209.6,209.55,2.04154068]
[1759169433559,11.671,209.61,209.55,2.04154068]
[1759169433760,3.2832729,209.6,209.55,9.83154068]
[1759169433956,7.38,209.6,209.56,7.79]
[1759169435061,7.38,209.62,209.55,2.04154068]
[1759169435258,3.28349404,209.61,209.55,2.04154068]
[1759169435460,7.38,209.6,209.52,7.79]
[1759169435659,3.28349404,209.59,209.53,2.04154068]
[1759169437262,3.28349404,209.59,209.55,2.04154068]
[1759169437464,3.28349404,209.59,209.57,9.83154068]
[1759169437654,10.66461483,209.62,209.57,9.83154068]
[1759169437854,3.28461483,209.61,209.57,9.83154068]
[1759169438255,55.34037866,209.66,209.59,9.83154068]
[1759169438566,3.28462837,209.65,209.59,9.83154068]
[1759169439065,3.28462837,209.65,209.59,2.04154068]
[1759169440858,3.28462837,209.65,209.63,2.04154068]
[1759169441069,7.38,209.7,209.63,9.83154068]
[1759169441265,10.66462837,209.69,209.65,2.04154068]
[1759169441466,10.66462837,209.68,209.65,2.04154068]
[1759169441771,445.46,209.72,209.65,9.83154068]
[1759169441965,3.28346259,209.71,209.65,9.83154068]
[1759169442165,3.28346259,209.71,209.65,2.04154068]
[1759169442567,3.28346259,209.71,209.65,6.33134068]
[1759169442770,3.28346259,209.71,209.65,2.04154068]
[1759169443068,7.38,209.7,209.63,2.04154068]
[1759169443270,3.28346259,209.69,209.63,2.04154068]
[1759169444372,7.38,209.7,209.63,2.04154068]
[1759169445173,7.38,209.7,209.63,6.33174068]
[1759169445367,7.38,209.7,209.65,2.04154068]
[1759169445573,124.78,209.71,209.65,2.04154068]
[1759169445872,3.27903243,209.7,209.65,2.04154068]
[1759169446067,7.38,209.69,209.65,2.04154068]
[1759169446273,117.4,209.71,209.65,2.04154068]
[1759169446572,7.38,209.69,209.62,12.0804]
[1759169446763,117.4,209.71,209.64,2.04154068]
[1759169446967,10.65801913,209.7,209.64,2.04154068]
[1759169447165,7.38,209.7,209.64,2.04154068]
[1759169447471,7.38,209.7,209.62,14.12194068]
[1759169447771,7.38,209.7,209.63,4.2902]
[1759169447980,7.38,209.7,209.64,2.04154068]
[1759169449976,7.38,209.7,209.64,6.33154068]
[1759169450176,7.38,209.7,209.66,2.04154068]
[1759169450380,71.98391384,209.8,209.68,2.04154068]
[1759169450381,7.38,209.73,209.68,2.04154068]
[1759169450578,7.38,209.73,209.61,7.79]
[1759169450775,3.27677452,209.72,209.66,2.04154068]
[1759169450976,7.38,209.73,209.66,2.04154068]
[1759169451982,9.42154068,209.73,209.64,2.04154068]
[1759169452286,4.2889,209.71,209.64,2.04154068]
[1759169452884,3.276725,209.72,209.64,6.33154068]
[1759169453277,120.776725,209.72,209.64,6.33154068]
[1759169453477,117.5,209.72,209.64,6.33154068]
[1759169454080,117.5,209.72,209.65,4.2898]
[1759169454283,7.9,209.76,209.68,2.04154068]
[1759169454487,3.27682268,209.75,209.68,2.04154068]
[1759169454684,3.27682268,209.75,209.7,2.04154068]
[1759169454885,7.9,209.74,209.7,2.04154068]
[1759169455193,7.9,209.74,209.7,14.30034068]
[1759169455386,7.9,209.78,209.7,2.04154068]
[1759169455688,120.75628912,209.77,209.69,7.97]
[1759169455885,17.5056298,209.76,209.68,2.04154068]
[1759169456187,9.94154068,209.74,209.66,2.04154068]
[1759169456487,2.04154068,209.72,209.65,14.5583416]
[1759169456790,7.9,209.67,209.6,2.04154068]
[1759169457189,7.9,209.67,209.6,16.23866624]
[1759169457484,7.9,209.67,209.6,2.04154068]
[1759169458093,7.9,209.69,209.62,4.2906]
[1759169458290,36.64,209.69,209.61,7.97]
[1759169458489,7.9,209.69,209.61,7.97]
[1759169458988,7.9,209.69,209.64,12.26]
[1759169459493,65.62,209.71,209.64,4.29]
[1759169459793,11.18013457,209.7,209.62,4.2905]
[1759169460092,7.9,209.68,209.57,13.48844985]
[1759169460585,7.9,209.68,209.58,7.97]
[1759169460782,75.14,209.7,209.59,66.7527]
[1759169460987,75.14,209.7,209.6,7.97]
[1759169461391,11.18206328,209.69,209.6,7.97]
[1759169461592,3.28206328,209.68,209.6,7.97]
[1759169461787,7.9,209.67,209.6,7.97]
[1759169461986,7.9,209.67,209.6,12.2609]
[1759169462191,75.14,209.7,209.6,7.97]
[1759169462493,3.28293788,209.69,209.61,7.97]
[1759169462689,75.14,209.7,209.61,7.97]
[1759169463297,3.2835927,209.69,209.61,7.97]
[1759169464191,3.2835927,209.7,209.64,4.29]
[1759169464391,48.2235927,209.7,209.64,4.29]
[1759169464597,3.2835927,209.69,209.64,4.29]
[1759169464796,11.1835927,209.7,209.64,12.26]
[1759169464997,11.1835927,209.69,209.64,12.26]
[1759169465196,7.9,209.7,209.64,4.29]
[1759169465398,7.9,209.68,209.64,4.29]
[1759169465593,103.36,209.7,209.64,12.26]
[1759169465792,3.28534268,209.69,209.65,12.2598]
[1759169465997,7.9,209.68,209.65,4.2898]
[1759169466196,7.9,209.69,209.63,4.2903]
[1759169466397,3.28568661,209.68,209.63,4.2903]
[1759169466699,3.28568661,209.69,209.64,4.2901]
[1759169466896,112.82,209.69,209.65,7.97]
[1759169467095,7.9,209.72,209.65,7.97]
[1759169467294,128.78539138,209.71,209.67,4.2895]
[1759169467596,3.28539138,209.7,209.67,4.2895]
[1759169468496,3.28539138,209.7,209.68,12.2593]
[1759169468691,7.9,209.75,209.68,12.2593]
[1759169468692,117.56,209.73,209.68,12.2593]
[1759169468892,3.28539138,209.72,209.66,7.97]
[1759169469094,120.86539138,209.74,209.66,7.97]
[1759169469296,3.28539138,209.73,209.67,66.7273]
[1759169469499,117.58,209.75,209.68,7.97]
[1759169469703,117.58,209.75,209.68,13.48844985]
[1759169469894,117.68,209.76,209.68,13.48844985]
[1759169470095,11.18386537,209.75,209.71,4.2887]
[1759169470295,11.18386537,209.75,209.68,13.48844985]
[1759169470296,7.9,209.75,209.68,7.97]
[1759169470496,7.9,209.75,209.7,4.2888]
[1759169470898,7.9,209.75,209.7,12.2588]
[1759169471398,117.66,209.76,209.7,12.2588]
[1759169471600,117.66,209.76,209.7,4.2888]
[1759169471601,7.9,209.74,209.7,4.2888]
[1759169472097,7.9,209.74,209.68,4.2894]
[1759169472600,7.9,209.72,209.62,7.97]
[1759169472794,7.9,209.7,209.58,66.7545]
[1759169472995,7.9,209.7,209.66,4.2898]
[1759169473196,26.76,209.69,209.66,4.2898]
[1759169473491,26.76,209.69,209.61,7.97]
[1759169473492,7.9,209.73,209.63,66.7407]
[1759169473694,0.83004377,209.79,209.66,7.97]
[1759169473899,123.9649947,209.78,209.66,7.97]
[1759169474099,3.2849947,209.77,209.66,7.97]
[1759169474308,3.2849947,209.76,209.66,7.97]
[1759169474600,7.42,209.74,209.66,7.97]
[1759169474798,3.2849947,209.73,209.66,7.97]
[1759169475604,3.2849947,209.73,209.69,12.249]
[1759169475799,10.7049947,209.74,209.69,12.249]
[1759169475999,10.7049947,209.74,209.7,4.2889]
[1759169476000,3.2849947,209.73,209.7,4.2889]
[1759169476497,117.7,209.76,209.7,12.2489]
[1759169476695,3.28606625,209.75,209.71,7.96]
[1759169477096,3.28606625,209.75,209.68,4.2893]
[1759169477097,10.70606625,209.75,209.68,4.2893]
[1759169477302,3.28606625,209.74,209.68,4.2893]
[1759169477500,3.28606625,209.74,209.66,7.96]
[1759169477701,10.70606625,209.73,209.62,8.86070593]
[1759169477902,3.28606625,209.72,209.63,7.96]
[1759169478101,3.28606625,209.72,209.69,7.96]
[1759169478504,7.42,209.76,209.68,7.96]
[1759169478707,3.28877476,209.75,209.67,3.18147583]
[1759169478906,3.28877476,209.75,209.68,7.96]
[1759169479407,3.28877476,209.74,209.69,4.2892]
[1759169479706,3.28877476,209.75,209.68,7.96]
[1759169480205,3.28877476,209.74,209.69,4.2892]
[1759169480503,3.28877476,209.75,209.68,4.2893]
[1759169480805,3.28877476,209.74,209.68,4.2893]
[1759169481100,3.28877476,209.75,209.68,4.2893]
[1759169481302,7.42,209.73,209.66,4.2898]
[1759169481501,3.28877476,209.72,209.66,4.2898]
[1759169482310,7.42,209.7,209.66,4.2898]
[1759169482702,7.42,209.74,209.66,12.2498]
[1759169482902,3.29391498,209.73,209.66,12.2498]
[1759169483103,3.29391498,209.72,209.66,12.2498]
[1759169483304,10.71391498,209.71,209.66,12.2498]
[1759169483601,7.42,209.71,209.66,12.2498]
[1759169483801,7.42,209.71,209.66,4.2898]
[1759169484001,3.29518554,209.7,209.67,7.96]
[1759169484399,7.42,209.71,209.66,4.2898]
[1759169484609,3.29625218,209.7,209.66,4.2898]
[1759169484809,7.42,209.71,209.66,4.2898]
[1759169485112,3.29625218,209.7,209.66,11.7798]
[1759169485312,11.6886,209.73,209.65,3.18147583]
[1759169485610,3.29713917,209.72,209.64,4.2902]
[1759169485810,3.29713917,209.71,209.64,4.2902]
[1759169486106,3.29713917,209.7,209.64,4.2902]
[1759169486309,10.69713917,209.69,209.64,11.7802]
[1759169486506,3.29713917,209.68,209.64,11.7802]
[1759169486707,86.26,209.72,209.65,11.7799]
[1759169486914,3.29785537,209.71,209.65,7.49]
[1759169487211,3.29785537,209.7,209.65,3.18147583]
[1759169487407,3.29785537,209.69,209.65,3.18147583]
[1759169487612,3.29765382,209.72,209.66,7.49]
[1759169487910,3.29765382,209.71,209.66,7.49]
[1759169488107,3.29765382,209.71,209.65,3.18147583]
[1759169488108,3.29765382,209.7,209.65,3.18147583]
[1759169488311,3.29765382,209.69,209.66,7.49]
[1759169488614,59.92,209.73,209.66,7.49]
[1759169488910,3.2978192,209.72,209.66,7.49]
[1759169489111,3.2978192,209.71,209.65,10.67147583]
[1759169489412,3.2978192,209.7,209.65,3.18147583]
[1759169489603,7.4,209.73,209.68,7.49]
[1759169489809,3.29771864,209.72,209.66,7.49]
[1759169490009,3.29771864,209.71,209.66,7.49]
[1759169490208,7.4,209.77,209.68,3.18147583]
[1759169490410,3.29766975,209.76,209.69,7.49]
[1759169490712,3.29766975,209.75,209.69,7.49]
[1759169490909,3.29766975,209.74,209.68,3.18147583]
[1759169491111,7.4,209.77,209.73,11.7783]
[1759169491412,3.29717292,209.76,209.7,7.49]
[1759169491612,3.29717292,209.75,209.7,7.49]
[1759169491913,125.18,209.81,209.7,7.49]
[1759169492117,3.29630074,209.8,209.7,7.49]
[1759169492413,3.29630074,209.79,209.7,7.49]
[1759169492612,3.29630074,209.78,209.73,4.2883]